bitfinex/quotes_SOLUSD_20250928
["timestamp","ask_amount","ask_price","bid_price","bid_amount"]
[1759098034121,0.7,210.17,210.11,5.39579125]
[1759098035452,0.7,210.17,210.12,5.39579125]
[1759098035650,39.84,210.18,210.12,5.39579125]
[1759098035955,40.54,210.18,210.12,5.39579125]
[1759098036130,39.84,210.18,210.1,5.39579125]
[1759098036454,0.7,210.17,210.1,5.39579125]
[1759098036944,39.84,210.18,210.06,5.45052027]
[1759098036945,0.7,210.16,210.06,5.45052027]
[1759098037143,0.7,210.15,210.07,5.39579125]
[1759098039047,0.7,210.15,210.07,10.15605884]
[1759098040137,0.7,210.15,210.06,0.69]
[1759098040347,26.0,210.14,210.06,0.69]
[1759098040549,26.7,210.14,210.06,0.69]
[1759098040730,26.7,210.14,210.06,5.39579125]
[1759098040935,0.7,210.13,210.04,5.39579125]
[1759098041336,0.7,210.13,210.03,0.69]
[1759098041651,0.7,210.13,210.05,5.39579125]
[1759098041831,0.7,210.13,210.05,0.69]
[1759098042149,0.7,210.13,210.06,5.39579125]
[1759098042748,0.7,210.13,210.06,4.76044181]
[1759098042952,0.7,210.13,210.06,5.39579125]
[1759098043458,0.7,210.12,210.01,0.69]
[1759098043633,0.7,210.12,210.04,5.39579125]
[1759098043941,14.29559401,210.14,210.05,0.69]
[1759098044250,14.29559401,210.14,209.95,39.8]
[1759098044439,0.7,210.13,210.05,5.39579125]
[1759098044632,26.0,210.11,210.03,0.69]
[1759098044833,26.7,210.11,210.05,5.39579125]
[1759098045234,26.7,210.11,210.04,5.39579125]
[1759098046554,26.0,210.11,210.04,5.39579125]
[1759098046756,26.0,210.11,210.05,0.69]
[1759098047129,26.0,210.11,210.05,6.08579125]
[1759098047765,26.0,210.11,210.05,0.69]
[1759098047937,26.0,210.11,210.05,6.08579125]
[1759098049355,26.0,210.11,210.05,5.45073516]
[1759098049658,26.0,210.11,210.05,10.84652641]
[1759098050234,13.59559401,210.14,209.95,65.76]
[1759098050235,39.59559401,210.16,210.09,5.39579125]
[1759098050441,53.97559401,210.16,210.09,10.15560622]
[1759098050633,40.38,210.16,210.09,10.15560622]
[1759098050850,39.68,210.16,210.11,5.39579125]
[1759098051036,0.67,210.15,210.1,0.71]
[1759098051238,39.68,210.16,210.11,0.71]
[1759098051538,39.68,210.16,210.1,5.39579125]
[1759098051539,0.67,210.15,210.1,5.39579125]
[1759098051749,0.67,210.15,210.09,5.39579125]
[1759098051948,0.67,210.14,210.07,5.39579125]
[1759098052270,39.68,210.16,210.09,5.39579125]
[1759098052836,39.68,210.16,210.09,10.15563123]
[1759098053061,39.68,210.16,210.11,5.39579125]
[1759098053247,40.35,210.16,210.1,0.71]
[1759098053657,40.35,210.16,210.1,5.39579125]
[1759098054044,14.26559401,210.15,210.07,5.39579125]
[1759098054244,0.67,210.14,210.07,5.39579125]
[1759098055461,13.59559401,210.14,210.07,5.39579125]
[1759098055657,26.0,210.12,210.05,6.10579125]
[1759098055864,0.67,210.11,210.05,5.39579125]
[1759098056473,0.67,210.1,210.03,5.39579125]
[1759098057171,13.59559401,210.16,210.03,5.39579125]
[1759098057376,26.0,210.11,210.04,0.71]
[1759098057543,0.67,210.1,210.03,5.39579125]
[1759098058660,4.0133375,210.24,210.07,5.39579125]
[1759098058866,26.0,210.12,210.07,5.39579125]
[1759098059052,26.0,210.12,210.08,0.71]
[1759098059460,26.0,210.12,210.07,5.39579125]
[1759098059655,26.0,210.12,210.08,0.71]
[1759098059964,5.39579125,210.18,210.08,0.71]
[1759098059965,0.67,210.14,210.08,0.71]
[1759098060163,26.67,210.14,210.07,5.39579125]
[1759098060348,53.94559401,210.13,210.01,0.71]
[1759098060866,53.94559401,210.13,210.05,5.39579125]
[1759098061247,13.59559401,210.11,210.05,5.39579125]
[1759098061442,0.67,210.1,210.03,5.39579125]
[1759098061982,13.59559401,210.08,209.99,5.39579125]
[1759098062147,0.67,210.07,210.0,0.71]
[1759098062469,0.67,210.07,210.01,5.39579125]
[1759098062668,13.59559401,210.08,210.01,5.39579125]
[1759098062849,14.26559401,210.08,210.01,5.39579125]
[1759098063369,0.67,210.07,210.01,5.39579125]
[1759098063573,0.67,210.07,209.99,6.10579125]
[1759098066096,0.67,210.07,209.99,10.86782568]
[1759098066584,0.67,210.07,209.99,6.10579125]
[1759098066947,40.35,210.07,209.99,0.71]
[1759098067174,13.59559401,210.06,209.96,6.10579125]
[1759098067369,0.67,210.05,209.96,0.71]
[1759098067670,0.67,210.05,209.96,6.10579125]
[1759098068061,44.99138526,210.03,209.93,6.10579125]
[1759098068266,13.59559401,210.01,209.93,0.71]
[1759098068573,13.59559401,210.01,209.92,5.39579125]
[1759098068574,13.59559401,209.99,209.92,5.39579125]
[1759098068879,0.67,209.98,209.91,0.71]
[1759098069870,0.67,209.98,209.84,26.0]
[1759098070072,0.67,209.98,209.9,5.39579125]
[1759098070285,5.39579125,210.08,209.83,16.67995913]
[1759098070286,39.59559401,210.03,209.96,5.39579125]
[1759098070460,39.59559401,210.03,209.97,0.71]
[1759098070661,40.35,210.04,209.97,6.10579125]
[1759098070863,39.68,210.07,209.99,5.39579125]
[1759098071062,39.68,210.07,210.0,6.10579125]
[1759098071690,39.68,210.07,209.97,16.66887736]
[1759098071691,39.68,210.07,210.02,5.39579125]
[1759098071868,39.68,210.07,209.97,16.66887736]
[1759098071869,0.67,210.1,210.04,5.39579125]
[1759098072191,32.84,210.14,210.06,5.39579125]
[1759098072376,32.84,210.14,210.06,6.05579125]
[1759098072693,32.84,210.14,210.08,5.39579125]
[1759098072986,32.84,210.14,210.09,5.39579125]
[1759098073193,32.84,210.14,210.09,6.05579125]
[1759098073560,32.84,210.14,210.1,0.66]
[1759098073960,32.84,210.14,210.11,0.66]
[1759098074181,53.27559401,210.19,210.12,0.66]
[1759098074883,39.68,210.19,210.13,5.39579125]
[1759098075064,39.68,210.19,210.14,0.66]
[1759098075264,39.68,210.19,210.15,6.05579125]
[1759098075470,39.68,210.19,210.15,5.55579125]
[1759098075677,26.1,210.21,210.15,5.55579125]
[1759098075981,0.1,210.21,210.15,5.39579125]
[1759098076889,0.1,210.21,210.16,4.7582794]
[1759098077084,0.1,210.21,210.16,10.15407065]
[1759098077681,0.1,210.21,210.17,0.66]
[1759098077870,0.1,210.21,210.16,5.39579125]
[1759098078072,0.1,210.21,210.16,6.05579125]
[1759098079087,0.1,210.21,210.17,4.758053]
[1759098079793,0.1,210.21,210.06,26.0]
[1759098079976,0.7,210.2,210.14,5.39579125]
[1759098080577,0.1,210.21,210.14,5.39579125]
[1759098080884,0.1,210.21,210.15,0.71]
[1759098081075,0.1,210.21,210.16,4.7582794]
[1759098081271,0.1,210.21,210.15,0.71]
[1759098081470,0.78,210.21,210.15,0.71]
[1759098081686,0.78,210.21,210.15,6.10579125]
[1759098082898,0.78,210.21,210.15,5.39579125]
[1759098083271,0.1,210.21,210.15,5.39579125]
[1759098084875,26.68,210.2,210.02,23.80688768]
[1759098085188,39.59559401,210.18,210.09,0.71]
[1759098085390,39.59559401,210.18,210.09,6.10579125]
[1759098085697,0.68,210.17,210.09,6.10579125]
[1759098085909,0.68,210.16,210.08,5.39579125]
[1759098086079,0.68,210.15,210.08,5.39579125]
[1759098086486,84.65138526,210.18,210.09,0.71]
[1759098086487,79.25559401,210.18,210.09,0.71]
[1759098086795,0.68,210.17,210.09,0.71]
[1759098087416,0.68,210.17,210.07,0.71]
[1759098087695,26.0,210.14,210.06,6.10579125]
[1759098087895,26.68,210.14,210.06,6.10579125]
[1759098088382,26.0,210.14,210.07,0.71]
[1759098088978,13.59559401,210.18,210.08,5.39579125]
[1759098089177,39.66,210.17,210.09,5.46986481]
[1759098089403,39.66,210.17,210.09,10.86565606]
[1759098089604,0.68,210.16,210.09,10.86565606]
[1759098089812,39.66,210.17,210.09,10.15565606]
[1759098089982,39.66,210.17,210.13,5.39579125]
[1759098090305,0.1,210.21,210.14,0.71]
[1759098090804,0.1,210.21,210.15,5.39579125]
[1759098091185,0.1,210.21,210.15,10.15409325]
[1759098091701,0.1,210.21,210.15,10.86409325]
[1759098091898,0.1,210.21,210.15,6.10579125]
[1759098092083,0.78,210.21,210.15,5.39579125]
[1759098092284,0.1,210.21,210.14,4.40600413]
[1759098092501,0.78,210.21,210.14,4.40600413]
[1759098092804,0.1,210.21,210.15,0.71]
[1759098093113,0.68,210.2,210.13,4.40600413]
[1759098093316,0.1,210.21,210.14,5.46873227]
[1759098093601,0.78,210.21,210.14,5.46873227]
[1759098093782,0.78,210.21,210.14,9.1647364]
[1759098095482,0.78,210.21,210.12,8.45507881]
[1759098095805,0.78,210.21,210.13,0.71]
[1759098096828,0.1,210.21,210.14,3.69600413]
[1759098096978,0.1,210.21,210.15,0.71]
[1759098097494,0.1,210.21,210.16,4.7582794]
[1759098097695,0.1,210.21,210.17,0.71]
[1759098097906,0.1,210.21,210.18,0.71]
[1759098098407,0.1,210.21,210.16,18.17425682]
[1759098098614,0.1,210.21,210.17,0.71]
[1759098099606,0.1,210.21,210.18,0.71]
[1759098099909,0.1,210.21,210.19,0.71]
[1759098100217,0.1,210.21,210.18,3.6946393]
[1759098100697,0.1,210.21,210.16,0.71]
[1759098101017,0.1,210.21,210.17,0.71]
[1759098101218,0.1,210.21,210.18,3.6946393]
[1759098101592,0.1,210.21,210.19,4.75739643]
[1759098104317,0.1,210.21,210.2,4.4046393]
[1759098104627,0.1,210.3,210.26,3.6946393]
[1759098104927,13.69559401,210.3,210.21,0.71]
[1759098105144,13.59559401,210.28,210.19,4.75739643]
[1759098105420,0.68,210.27,210.2,3.6946393]
[1759098105731,0.68,210.26,210.21,4.75714761]
[1759098105923,0.68,210.25,210.21,4.75714761]
[1759098107617,0.68,210.25,210.19,16.65160092]
[1759098109522,14.27559401,210.24,210.14,0.71]
[1759098109729,17.97023331,210.24,210.14,3.6946393]
[1759098110030,13.59559401,210.22,210.12,4.4046393]
[1759098110403,0.68,210.27,210.2,3.6946393]
[1759098110620,0.68,210.27,210.21,0.71]
[1759098111431,40.27,210.29,210.22,3.6946393]
[1759098111602,39.6,210.29,210.23,4.75669504]
[1759098111941,0.67,210.28,210.23,4.75669504]
[1759098112149,0.67,210.27,210.23,4.75669504]
[1759098112417,0.67,210.26,210.22,3.6946393]
[1759098112618,0.67,210.28,210.22,8.45144087]
[1759098113602,39.6,210.29,210.24,4.75646879]
[1759098113902,0.67,210.28,210.2,0.69]
[1759098114128,0.67,210.28,210.21,3.6946393]
[1759098115216,0.67,210.27,210.21,3.6946393]
[1759098115521,0.67,210.26,210.21,3.6946393]
[1759098115716,0.67,210.26,210.21,8.45156429]
[1759098116119,0.67,210.25,210.19,4.3846393]
[1759098116299,0.67,210.24,210.17,3.6946393]
[1759098116503,17.29023331,210.28,210.16,8.4529187]
[1759098116504,0.67,210.23,210.16,8.4529187]
[1759098116716,0.67,210.25,210.17,0.69]
[1759098116922,44.3555028,210.29,210.16,3.6946393]
[1759098116923,0.67,210.23,210.16,3.6946393]
[1759098117324,0.67,210.23,210.18,3.6946393]
[1759098117516,0.67,210.22,210.18,3.6946393]
[1759098117717,13.59559401,210.26,210.13,0.69]
[1759098117718,0.67,210.21,210.13,0.69]
[1759098117929,0.67,210.21,210.13,3.6946393]
[1759098118127,14.26559401,210.2,210.11,3.6946393]
[1759098118432,13.59559401,210.18,210.06,5.4505446]
[1759098118613,13.59559401,210.16,210.07,3.6946393]
[1759098118821,0.67,210.15,210.07,3.6946393]
[1759098119321,0.67,210.15,210.09,3.6946393]
[1759098119713,0.67,210.15,210.09,8.45447691]
[1759098120020,0.67,210.15,210.09,3.6946393]
[1759098120326,0.67,210.14,210.05,0.69]
[1759098120529,13.59559401,210.13,210.06,1.52165565]
[1759098120706,0.67,210.12,210.04,1.52165565]
[1759098120909,0.67,210.15,210.06,1.52165565]
[1759098121228,13.59559401,210.14,210.07,0.69]
[1759098121428,0.67,210.13,210.03,0.69]
[1759098121625,13.59559401,210.1,210.0,0.69]
[1759098121829,0.67,210.09,210.02,1.52165565]
[1759098122032,0.67,210.09,210.04,1.52165565]
[1759098122415,0.67,210.09,210.0,4.76184525]
[1759098122416,39.58,210.11,210.06,1.52165565]
[1759098122612,40.25,210.11,210.0,22.75322975]
[1759098122834,40.25,210.11,210.04,0.69]
[1759098123041,26.0,210.12,210.08,1.52165565]
[1759098123246,66.25,210.15,210.08,2.21165565]
[1759098123534,0.67,210.11,210.03,0.69]
[1759098123734,0.67,210.11,210.08,1.52165565]
[1759098123936,0.67,210.1,210.06,1.52165565]
[1759098124115,0.67,210.09,210.06,0.52165565]
[1759098124316,39.59559401,210.11,210.06,0.52165565]
[1759098124317,0.67,210.08,210.06,0.52165565]
[1759098125334,40.26559401,210.11,210.06,0.52165565]
[1759098125516,0.67,210.1,210.06,0.52165565]
[1759098125715,0.67,210.09,210.06,0.52165565]
[1759098126113,39.59559401,210.11,210.06,0.69]
[1759098126309,0.67,210.1,210.07,1.52165565]
[1759098126516,39.59559401,210.11,210.07,1.52165565]
[1759098126718,39.59559401,210.11,210.09,1.52165565]
[1759098126924,26.0,210.12,210.09,1.52165565]
[1759098127116,39.58,210.14,210.11,1.52165565]
[1759098127325,40.25,210.14,210.11,1.52165565]
[1759098127526,13.59559401,210.18,210.13,1.52165565]
[1759098127724,0.67,210.17,210.15,1.52165565]
[1759098127921,0.67,210.16,210.13,1.52165565]
[1759098128123,26.67,210.15,210.11,1.52165565]
[1759098128435,26.0,210.15,210.11,1.52165565]
[1759098128916,0.67,210.14,210.09,1.52165565]
[1759098129118,0.67,210.13,210.09,1.52165565]
[1759098129318,0.67,210.12,210.09,1.52165565]
[1759098129540,0.67,210.11,210.08,1.52165565]
[1759098129852,0.67,210.1,210.04,1.52165565]
[1759098130023,0.67,210.09,210.04,1.52165565]
[1759098130345,0.67,210.08,210.03,1.52165565]
[1759098130554,0.67,210.07,210.03,1.52165565]
[1759098130734,0.67,210.06,210.03,1.52165565]
[1759098132639,0.67,210.06,210.0,4.76185236]
[1759098132829,0.67,210.06,210.03,1.52165565]
[1759098133138,53.15559401,210.08,210.03,1.52165565]
[1759098133441,0.71,210.07,210.03,1.52165565]
[1759098133674,0.71,210.06,210.03,1.52165565]
[1759098133841,0.71,210.05,210.03,1.52165565]
[1759098134043,0.71,210.04,209.98,0.67]
[1759098134243,0.71,210.04,209.99,1.52165565]
[1759098134420,53.15559401,210.08,209.99,1.52165565]
[1759098134619,13.59559401,210.06,209.99,1.52165565]
[1759098134822,0.71,210.05,209.99,1.52165565]
[1759098135039,0.71,210.05,210.01,1.52165565]
[1759098135344,0.71,210.04,210.01,1.52165565]
[1759098136062,13.59559401,210.06,210.01,1.52165565]
[1759098136233,132.8,210.1,209.93,0.67]
[1759098136234,39.59559401,210.02,209.93,0.67]
[1759098136433,79.15559401,210.02,209.96,1.52165565]
[1759098136645,0.71,210.01,209.93,0.67]
[1759098136849,0.71,210.01,209.93,1.52165565]
[1759098136850,26.0,209.97,209.93,1.52165565]
[1759098137149,26.71,209.97,209.93,1.52165565]
[1759098138249,26.0,209.97,209.93,1.52165565]
[1759098138552,26.71,209.97,209.93,1.52165565]
[1759098138732,0.71,209.96,209.92,0.2]
[1759098138933,41.11724966,209.93,209.92,0.2]
[1759098139267,26.0,209.86,209.85,0.2]
[1759098139561,79.15559401,209.86,209.85,0.2]
[1759098139737,79.86559401,209.86,209.85,0.2]
[1759098140255,39.56,209.87,209.85,0.2]
[1759098140566,26.0,209.86,209.85,0.2]
[1759098141932,26.7,209.86,209.85,0.2]
[1759098142233,66.26,209.86,209.85,0.2]
[1759098142664,79.85559401,209.86,209.85,0.2]
[1759098143131,81.37724966,209.86,209.85,0.2]
[1759098144440,86.14233114,209.86,209.85,0.2]
[1759098145153,81.37724966,209.86,209.85,0.2]
[1759098145345,79.85559401,209.86,209.85,0.2]
[1759098146159,84.62067549,209.86,209.85,0.2]
[1759098146941,86.14233114,209.86,209.85,0.2]
[1759098148252,45.06067549,209.86,209.85,0.2]
[1759098148443,86.14233114,209.86,209.85,0.2]
[1759098148638,79.85559401,209.86,209.85,0.2]
[1759098148847,53.85559401,209.86,209.85,0.2]
[1759098149040,53.15559401,209.86,209.85,0.2]
[1759098149239,58.62067549,209.86,209.85,0.2]
[1759098149447,60.14233114,209.86,209.85,0.2]
[1759098149631,55.37724966,209.86,209.85,0.2]
[1759098149836,53.15559401,209.86,209.85,14.47]
[1759098150237,13.59559401,209.86,209.85,14.47]
[1759098150443,39.56,209.86,209.85,15.14]
[1759098151957,39.56,209.86,209.85,14.47]
[1759098152147,60.14233114,209.86,209.85,14.47]
[1759098154467,64.0370826,209.86,209.85,14.47]
[1759098154868,58.62067549,209.86,209.85,14.47]
[1759098155064,64.0370826,209.86,209.85,0.2]
[1759098156848,39.59559401,209.83,209.82,0.2]
[1759098157044,84.57200112,209.83,209.82,0.2]
[1759098157250,85.27200112,209.83,209.82,0.2]
[1759098157558,90.03776388,209.83,209.82,0.2]
[1759098158166,50.47776388,209.83,209.82,0.2]
[1759098158360,90.03776388,209.83,209.82,0.2]
[1759098160776,50.47776388,209.83,209.82,0.2]
[1759098161075,89.31776388,209.83,209.82,0.2]
[1759098161256,19.01200112,209.83,209.82,0.2]
[1759098161453,53.13559401,209.83,209.82,0.87]
[1759098162463,53.13559401,209.83,209.82,0.2]
[1759098162670,53.13559401,209.83,209.82,0.87]
[1759098163076,13.59559401,209.83,209.82,0.87]
[1759098163375,53.13559401,209.83,209.82,0.87]
[1759098163856,13.59559401,209.83,209.82,0.87]
[1759098164181,53.13559401,209.83,209.82,0.87]
[1759098164546,53.13559401,209.83,209.82,0.2]
[1759098164762,53.13559401,209.83,209.82,0.87]
[1759098164763,13.59559401,209.83,209.82,0.87]
[1759098164961,53.13559401,209.83,209.82,0.87]
[1759098165466,53.13559401,209.83,209.82,0.2]
[1759098166778,53.13559401,209.83,209.82,0.87]
[1759098167858,12.60849093,209.94,209.82,0.87]
[1759098168063,13.59559401,209.9,209.83,0.67]
[1759098168269,13.59559401,209.85,209.83,0.67]
[1759098168476,26.0,209.83,209.82,0.2]
[1759098169067,26.0,209.83,209.82,0.87]
[1759098169265,39.59559401,209.83,209.82,0.87]
[1759098169467,26.0,209.83,209.82,0.87]
[1759098172369,26.0,209.83,209.82,0.2]
[1759098172573,24.49776388,209.83,209.82,0.2]
[1759098176311,24.49776388,209.83,209.75,0.2]
[1759098176312,26.0,209.77,209.75,0.2]
[1759098176592,13.59559401,209.76,209.75,1e-08]
[1759098176799,15.98253948,209.76,209.75,1e-08]
[1759098176964,55.48253948,209.76,209.75,1e-08]
[1759098177171,13.59559401,209.76,209.75,1e-08]
[1759098177481,53.09559401,209.76,209.75,1e-08]
[1759098177874,13.59559401,209.76,209.75,1e-08]
[1759098178086,53.09559401,209.76,209.75,0.66000001]
[1759098178293,16.68016966,209.83,209.75,0.66000001]
[1759098178294,31.93809422,209.96,209.75,0.66000001]
[1759098178470,39.5,209.88,209.77,2.38694547]
[1759098178794,39.5,209.88,209.78,0.66]
[1759098179093,26.0,209.85,209.78,0.66]
[1759098179293,26.0,209.83,209.78,0.66]
[1759098180089,26.0,209.83,209.79,0.66]
[1759098180292,39.5,209.84,209.79,0.66]
[1759098180471,26.0,209.84,209.79,0.66]
[1759098180671,5.41202858,209.91,209.79,5.42663284]
[1759098180872,13.59559401,209.89,209.8,6.07202858]
[1759098181176,26.0,209.86,209.81,0.66]
[1759098181492,13.59559401,209.89,209.81,0.66]
[1759098181997,26.0,209.82,209.78,0.66]
[1759098182178,26.0,209.82,209.79,0.66]
[1759098182987,39.5,209.84,209.76,0.66]
[1759098182988,26.0,209.8,209.76,0.66]
[1759098183485,13.59559401,209.86,209.75,1e-08]
[1759098183486,19.00762259,209.86,209.77,0.66]
[1759098183690,26.0,209.82,209.77,0.66]
[1759098183886,39.48,209.85,209.77,0.66]
[1759098184495,39.48,209.85,209.77,5.42704041]
[1759098184709,39.48,209.85,209.78,0.66]
[1759098185879,26.0,209.86,209.78,0.66]
[1759098186082,26.0,209.88,209.79,5.41202858]
[1759098186392,65.48,209.88,209.81,4.76621705]
[1759098186599,65.48,209.88,209.82,0.66]
[1759098187289,39.48,209.88,209.82,0.66]
[1759098187596,39.48,209.89,209.82,0.66]
[1759098188476,39.48,209.89,209.83,4.76576276]
[1759098188894,39.48,209.89,209.82,0.66]
[1759098189197,39.48,209.89,209.82,5.42589217]
[1759098189393,39.48,209.89,209.83,0.66]
[1759098189892,39.48,209.89,209.8,0.66]
[1759098189893,26.0,209.86,209.8,0.66]
[1759098191094,26.0,209.86,209.8,5.42623664]
[1759098192802,26.0,209.86,209.8,0.66]
[1759098192976,26.0,209.86,209.79,5.41202858]
[1759098192977,66.17,209.85,209.75,5.45757077]
[1759098193173,66.17,209.85,209.75,10.86959935]
[1759098193603,13.59559401,209.84,209.75,5.45757077]
[1759098193779,0.71,209.83,209.75,0.69000001]
[1759098193984,0.71,209.83,209.75,1e-08]
[1759098194298,26.0,209.81,209.75,1e-08]
[1759098194496,65.44,209.81,209.75,1e-08]
[1759098194700,66.15,209.81,209.75,1e-08]
[1759098195700,39.44,209.81,209.75,0.69000001]
[1759098196079,39.44,209.81,209.75,6.10202859]
[1759098196277,39.44,209.81,209.75,0.69000001]
[1759098196595,39.44,209.81,209.75,1e-08]
[1759098197502,0.71,209.82,209.75,1e-08]
[1759098197695,40.15,209.82,209.75,1e-08]
[1759098198099,39.44,209.82,209.75,0.69000001]
[1759098198298,26.0,209.83,209.75,0.69000001]
[1759098198505,65.44,209.83,209.75,0.69000001]
[1759098198690,66.15,209.83,209.75,1e-08]
[1759098199085,26.0,209.79,209.75,1e-08]
[1759098199283,13.59559401,209.78,209.75,1e-08]
[1759098199484,26.0,209.76,209.75,1e-08]
[1759098199806,45.00762259,209.76,209.75,1e-08]
[1759098200123,40.30559401,209.76,209.75,1e-08]
[1759098200405,45.71762259,209.76,209.75,1e-08]
[1759098200991,40.30559401,209.76,209.75,1e-08]
[1759098201302,65.42,209.76,209.75,1e-08]
[1759098201692,66.13,209.76,209.75,1e-08]
[1759098201893,0.71,209.76,209.75,1e-08]
[1759098202093,53.72559401,209.76,209.75,1e-08]
[1759098202794,59.13762259,209.76,209.75,1e-08]
[1759098203108,53.72559401,209.76,209.75,1e-08]
[1759098203606,63.90497575,209.76,209.75,1e-08]
[1759098204798,59.13762259,209.76,209.75,1e-08]
[1759098204998,63.90497575,209.76,209.75,1e-08]
[1759098206092,87.72853595,209.76,209.75,1e-08]
[1759098206309,90.93170562,209.76,209.75,1e-08]
[1759098206610,96.3437342,209.76,209.75,1e-08]
[1759098206785,103.80272334,209.76,209.75,1e-08]
[1759098208697,98.39069476,209.76,209.75,1e-08]
[1759098209208,98.37069476,209.76,209.75,1e-08]
[1759098209403,55.76752509,209.76,209.75,1e-08]
[1759098209602,95.16752509,209.76,209.75,1e-08]
[1759098209816,90.40017193,209.76,209.75,1e-08]
[1759098210023,95.16752509,209.76,209.75,1e-08]
[1759098210394,98.36464639,209.76,209.75,1e-08]
[1759098211220,37.09401195,209.71,209.7,2e-08]
[1759098211409,23.21215037,209.67,209.64,1.1e-07]
[1759098211730,63.02852671,209.68,209.64,1.1e-07]
[1759098212605,23.49841794,209.71,209.64,1.1e-07]
[1759098212787,23.03882296,209.69,209.64,1.1e-07]
[1759098213388,13.59559401,209.71,209.64,0.43000011]
[1759098213607,39.4,209.7,209.64,0.43000011]
[1759098214121,26.0,209.67,209.64,1.1e-07]
[1759098214301,52.99559401,209.66,209.64,1.1e-07]
[1759098215698,53.70559401,209.66,209.64,1.1e-07]
[1759098215899,52.99559401,209.66,209.64,1.1e-07]
[1759098217306,13.59559401,209.66,209.64,1.1e-07]
[1759098217609,52.99559401,209.66,209.64,1.1e-07]
[1759098223037,14.30559401,209.65,209.64,1.1e-07]
[1759098224625,19.07544852,209.65,209.64,1.1e-07]
[1759098225119,24.19103918,209.66,209.64,1.1e-07]
[1759098225429,24.19103918,209.66,209.61,0.2]
[1759098225602,29.71559066,209.62,209.58,0.1]
[1759098225799,29.71559066,209.59,209.58,0.1]
[1759098226002,69.07559066,209.59,209.58,0.1]
[1759098226515,65.36,209.59,209.58,0.1]
[1759098226826,73.84681066,209.59,209.58,0.1]
[1759098227000,69.07559066,209.59,209.58,0.1]
[1759098227200,26.0,209.55,209.53,0.62]
[1759098227401,13.59559401,209.58,209.45,0.2]
[1759098227402,26.0,209.54,209.45,0.2]
[1759098227624,39.36,209.56,209.46,3.71559066]
[1759098227797,26.0,209.57,209.46,3.71559066]
[1759098228620,26.0,209.57,209.47,3.71559066]
[1759098229007,26.0,209.57,209.45,0.2]
[1759098229212,26.0,209.57,209.46,0.72]
[1759098230016,39.36,209.58,209.47,13.59559401]
[1759098230326,26.0,209.58,209.48,4.43559066]
[1759098230640,26.0,209.58,209.49,0.72]
[1759098230807,39.34,209.61,209.51,3.71559066]
[1759098231137,39.34,209.61,209.52,0.19]
[1759098231332,23.0637431,209.89,209.6,3.71559066]
[1759098231637,23.0637431,209.89,209.61,59.59559401]
[1759098231638,3.18343492,209.89,209.61,59.59559401]
[1759098231838,0.69,209.85,209.72,3.71559066]
[1759098232136,0.69,209.84,209.74,26.0]
[1759098232330,0.69,209.83,209.7,39.34]
[1759098232534,0.69,209.82,209.71,13.59559401]
[1759098232840,0.69,209.82,209.7,39.34]
[1759098233001,4.40559066,209.82,209.7,39.34]
[1759098233326,26.0,209.81,209.7,39.34]
[1759098233532,0.69,209.91,209.77,3.71559066]
[1759098233733,0.69,209.9,209.77,3.71559066]
[1759098233908,0.69,209.94,209.81,13.59559401]
[1759098234102,0.69,209.94,209.83,3.71559066]
[1759098234532,0.89,209.97,209.84,13.59559401]
[1759098234935,26.89,209.97,209.84,52.93559401]